Cogmind - Beta 10.1 @@@ ROGUE MODE // 2020.10.21 @ 01:36:51 Player: zzxc Result: Self-destructed Performance ------------- Evolutions (1) 500 Regions Visited (2) 400 Robots Destroyed (0) 0 Value Destroyed (0) 0 Prototype IDs (0) 0 Alien Tech Used (0) 0 Bonus (200) 200 TOTAL SCORE: 1100 Bonus ------- Pacifist 200 Cogmind --------- Core Integrity 332/400 Matter 300/300 Energy 59/100 System Corruption 0% Temperature Cool (0) Movement Flying (40) Location -9/Materials Parts ------- > --- POWER (1) -------- (None) > --- PROPULSION (2) --- Cesium-ion Thruster > --- UTILITY (4) ------ Improved Signal Interpreter > --- WEAPON (2) ------- (None) > --- INVENTORY (4) ---- Flight Unit Cesium-ion Thruster Cesium-ion Thruster Peak State ------------ > --- POWER ------------ (None) > --- PROPULSION ------- Cesium-ion Thruster Cesium-ion Thruster > --- UTILITY ---------- Improved Signal Interpreter > --- WEAPON ----------- (None) > --- INVENTORY -------- Flight Unit Cesium-ion Thruster Cesium-ion Thruster [Rating: 8] Favorites ----------- Power None Propulsion Cesium-ion Thruster Flight Unit Cesium-ion Thruster Utility Improved Signal Interpreter Processor Improved Signal Interpreter Weapon None Build | -11 -10 -9 ------- Run | Scr Mat Mat Slots Evolved 2 | . . 2 Power . | . . . Propulsion . | . . . Utility 2 | . . 2 Weapon . | . . . Parts Attached 4 | . . 4 Power . | . . . Engine . | . . . Core . | . . . Reactor . | . . . Propulsion 3 | . . 3 Treads . | . . . Leg . | . . . Wheel . | . . . Hover . | . . . Flight 3 | . . 3 Utility 1 | . . 1 Device . | . . . Storage . | . . . Processor 1 | . . 1 Hackware . | . . . Protection . | . . . Artifact . | . . . Weapon . | . . . Energy Gun . | . . . Energy Cannon . | . . . Ballistic Gun . | . . . Ballistic Cannon . | . . . Launcher . | . . . Special Weapon . | . . . Impact Weapon . | . . . Slashing Weapon . | . . . Piercing Weapon . | . . . Special Melee Weapon . | . . . Unidentified Prototypes . | . . . Parts Lost 2 | . . 2 Power . | . . . Propulsion 2 | . . 2 Utility . | . . . Weapon . | . . . Highest Loss Streak 2 | . . 2 Average Slot Usage (%) 13 | . . 16 Flight 9 | . . 12 Processor 3 | . . 4 Naked Turns 47 | . 26 21 Heaviest Build . | . . . Greatest Support 12 | 3 3 12 Greatest Overweight (x) . | . . . Average Overweight (x) . | . . . Largest Inventory Capacity 4 | 4 4 4 Average Capacity 4 | 4 4 4 Most Carried 4 | 3 . 4 Average Carried 1 | 2 . 2 Final Capacity 4 | 4 4 4 Final Carried 3 | . . 3 Class Distribution -------------------- 100% | Mutant Dominant Class ---------------- Mutant | -10/Materials Mutant | -9/Materials Resources | -11 -10 -9 ----------- Run | Scr Mat Mat Matter Collected 235 | 200 . 35 Remotely . | . . . Salvage Created . | . . . Parts . | . . . Haulers Intercepted . | . . . Recyclers Shooed . | . . . Parts Field Recycled . | . . . Retrieved Matter . | . . . Parts Self-Destructed . | . . . Prevented . | . . . Kills | -11 -10 -9 ------- Run | Scr Mat Mat Combat Hostiles Destroyed . | . . . Classes Destroyed . | . . . Best Kill Streak . | . . . Combat Bots Only . | . . . Max Kills in Single Turn . | . . . Gunslinging . | . . . Exploded . | . . . Melee . | . . . Uniques/NPCs Destroyed . | . . . Combat | -11 -10 -9 -------- Run | Scr Mat Mat Damage Taken 159 | . . 159 Core 68 | . . 68 Absorbed by Shields . | . . . Core Remaining (%) 100 | 100 100 . Volleys Fired . | . . . Largest . | . . . Hottest . | . . . Shots Fired . | . . . Gun . | . . . Cannon . | . . . Launcher . | . . . Special . | . . . Kinetic . | . . . Thermal . | . . . Explosive . | . . . Electromagnetic . | . . . Robot Hit Streak . | . . . Robot Miss Streak . | . . . Penetration Max . | . . . Secondary Targets . | . . . Shots Hit Robots . | . . . Core Hits . | . . . Critical Hits . | . . . Critical Kills . | . . . Critical Parts Destroyed . | . . . Melee Attacks . | . . . Impact . | . . . Slashing . | . . . Piercing . | . . . Sneak Attacks . | . . . Combat Hostiles . | . . . Follow-up Attacks . | . . . Damage Inflicted . | . . . Guns . | . . . Cannons . | . . . Explosions . | . . . Melee . | . . . Ramming . | . . . Kinetic . | . . . Thermal . | . . . Explosive . | . . . Electromagnetic . | . . . Impact . | . . . Slashing . | . . . Piercing . | . . . Highest Corruption . | . . . Average Corruption . | . . . Corruption Purged . | . . . Overload Shots . | . . . Overflow Damage . | . . . Projectiles . | . . . Explosions . | . . . Melee . | . . . Knockbacks . | . . . Impact . | . . . Kinetic . | . . . Secondary . | . . . Self-Inflicted Damage . | . . . Shots . | . . . Rammed . | . . . Targets Rammed . | . . . Kicked . | . . . Crushed . | . . . Highest Temperature . | . . . Average Temperature . | . . . Received Heat Transfer 45 | . . 45 Siege Activations . | . . . Robots Corrupted . | . . . Combat Hostiles . | . . . Parts Fried . | . . . Impact Corruptions . | . . . Robots Melted . | . . . Combat Hostiles . | . . . Parts Melted . | . . . Heat Transferred . | . . . Parts Sabotaged . | . . . Parts Stolen . | . . . Parts Stripped . | . . . Power Chain Reactions . | . . . Missiles Intercepted . | . . . Alert | -11 -10 -9 ------- Run | Scr Mat Mat Peak Influence 58 | . 24 58 Initial 9 | . . 9 Average 25 | . 20 27 Maximum Alert Level . | . . . Low Security (%) 100 | 100 100 100 Level 1 . | . . . Level 2 . | . . . Level 3 . | . . . Level 4 . | . . . Level 5 . | . . . High Security . | . . . Max Security . | . . . Squads Dispatched 3 | . . 3 Investigation 2 | . . 2 Extermination . | . . . Reinforcement 1 | . . 1 Assault . | . . . Garrison . | . . . Intercept . | . . . Construction Impeded . | . . . Haulers Reinforced . | . . . Stealth | -11 -10 -9 --------- Run | Scr Mat Mat Distress Signals . | . . . Communications Jammed . | . . . Distress Signals . | . . . Times Spotted 14 | . 1 13 Peak Tracking Total 12 | . 1 12 Tactical Retreats . | . . . Traps | -11 -10 -9 ------- Run | Scr Mat Mat Traps Triggered . | . . . Indirectly . | . . . Trap Hack Attempts . | . . . Triggered . | . . . Disarmed . | . . . Reprogrammed . | . . . Reused . | . . . Traps Extracted . | . . . Installed . | . . . Triggered . | . . . Machines | -11 -10 -9 ---------- Run | Scr Mat Mat Machines Disabled . | . . . Max in Single Turn . | . . . Machines Sabotaged . | . . . Garrisons Compromised . | . . . Overloaded Fab Kills . | . . . Fab Network Shutdowns . | . . . Hacking | -11 -10 -9 --------- Run | Scr Mat Mat Machines Accessed 3 | . 1 2 Terminals 3 | . 1 2 Fabricators . | . . . Repair Stations . | . . . Recycling Units . | . . . Scanalyzers . | . . . Garrison Access . | . . . Total Hacks 7 | . 1 6 Successful 2 | . 1 1 Failed 5 | . . 5 Catastrophic 2 | . . 2 Database Lockouts . | . . . Manual 8 | . 1 7 Terminals 7 | . 1 6 Fabricators . | . . . Repair Stations . | . . . Recycling Units . | . . . Scanalyzers . | . . . Garrison Access . | . . . Terminal Hacks 2 | . 1 1 Level Access Points 2 | . 1 1 Fabricator Hacks . | . . . Repair Station Hacks . | . . . Recycling Unit Hacks . | . . . Scanalyzer . | . . . Garrison Access Hacks . | . . . Unauthorized Hacks . | . . . Terminals . | . . . Fabricators . | . . . Repair Stations . | . . . Recycling Units . | . . . Scanalyzers . | . . . Garrison Access . | . . . Data Cores Recovered . | . . . Used . | . . . Hacking Detections 3 | . 1 2 Full Trace Events 2 | . . 2 Feedback Events . | . . . Feedback Blocked . | . . . Robot Schematics Acquired . | . . . Robots Built . | . . . Matter . | . . . Time . | . . . Total Robot Build Rating . | . . . Part Schematics Acquired . | . . . Parts Built . | . . . Matter . | . . . Time . | . . . Total Part Build Rating . | . . . Parts Repaired . | . . . Time . | . . . Parts Recycled . | . . . Recycled Matter . | . . . Retrieved Matter . | . . . Retrieved Components . | . . . Parts Scanalyzed . | . . . Part Schematics Acquired . | . . . Parts Damaged . | . . . Bothacking | -11 -10 -9 ------------ Run | Scr Mat Mat Used RIF Installer . | . . . Robots Hacked . | . . . Non-combat . | . . . Combat . | . . . Robot Hacks Applied . | . . . Relay Couplers Released . | . . . Robots Rewired . | . . . Allies Hacked . | . . . Hacks Repelled . | . . . Allies | -11 -10 -9 -------- Run | Scr Mat Mat Total Allies . | . . . Largest Group . | . . . Highest-Rated Group . | . . . Highest-Rated Ally . | . . . Total Orders . | . . . Ally Attacks . | . . . Total Damage . | . . . Kills . | . . . Allies Corrupted . | . . . Allies Melted . | . . . Intel | -11 -10 -9 ------- Run | Scr Mat Mat Robot Analysis Total . | . . . Derelict Logs Recovered . | . . . Drone Launches . | . . . Drone Recoveries . | . . . Exploration | -11 -10 -9 ------------- Run | Scr Mat Mat Turns Passed 108 | 2 26 80 Spaces Moved 217 | 1 51 165 Core 94 | 1 51 42 Treads . | . . . Legs . | . . . Wheels . | . . . Hover . | . . . Flight 123 | . . 123 Fastest Speed 37 | 50 50 37 Average Speed 43 | 50 50 41 Slowest Speed 50 | 50 50 50 Overloaded Moves . | . . . Propulsion Burnouts . | . . . Robots Hopped 5 | . . 5 Cave-ins Triggered . | . . . Exploration Rate (%) 17 | 2 23 27 Regions Visited 2 Branch Regions . Pre-discovered Areas . | . . . Known Exits Taken 1 | . 1 . Unknown Exits Taken 1 | 1 . . Scrap Searched . | . . . Spaces Dug . | . . . Terrain Destroyed . | . . . Melee . | . . . Projectile . | . . . AOE . | . . . Terrain Rammed . | . . . Walls Destroyed . | . . . Machines Disabled . | . . . Actions | -11 -10 -9 --------- Run | Scr Mat Mat Total 226 | 4 50 172 Wait . | . . . Move 205 | . 50 155 Hop 5 | . . 5 Pick Up 6 | . . 6 Fast Attach 3 | . . 3 Attach 1 | . . 1 Detach . | . . . Swap . | . . . Drop 6 | 4 . 2 Fire . | . . . Melee . | . . . Ram . | . . . Kick . | . . . Crush . | . . . Escape Stasis . | . . . Rewire . | . . . Trap . | . . . Miscellaneous . | . . . Route ------- -11/Scrapyard -10/Materials (discovered 3 exits: *Mat x3) -9/Materials (discovered 5 exits: Mat x3 / [*Min] / [*Sto]) History --------- Turn | Location | Event 1 | -11/Scrapyard | Released all parts (6) 3 | -11/Scrapyard | Discovered new exit (range 0) 3 | -11/Scrapyard | Entered Materials 6 | -10/Materials | Identified exit to Materials 29 | -10/Materials | Entered another Materials area 29 | -9/Materials | Evolved 2 slots: Utility x2 71 | -9/Materials | Identified exit to Materials 97 | -9/Materials | Discovered new exit (range 10) 108 | -9/Materials | Discovered new exit (range 9) 109 | -9/Materials | Self-destructed Last Messages --------------- Found 3 level access points to Materials: (85,90) (49,14) (16,92) Map updated. 00071_ ALERT: Suspicious activity at Terminal M008. Dispatching Investigation squad. 00072_ Acquired Imp. Signal Interpreter. 00074_ Flight Unit destroyed. 00075_ Acquired 35 matter. 00076_ K-01 Serf collects debris. 00084_ T-07 Excavator is excavating. 00091_ O-16 Technician: "IFF HANDSHAKE FAILED. SECURING TERMINAL." 00093_ ALERT: Hostiles spotted, dispatching reinforcements to Terminal M006. 00095_ Cesium-ion Thruster destroyed. 00097_ EXIT=FOUND 00102_ K-01 Serf collects debris. 00105_ O-16 Technician: "IFF HANDSHAKE FAILED. SECURING TERMINAL." 00108_ EXIT=FOUND Map ----- +----------------------------------------------------+ | | | | | | | | | | | | | ??????????????????????????????????? | | ??????????????????????????????????? | | ??????????????????????????????????? | | ??????????????????????????????????? | | ??????????????????????????????????? | | ??????????????????????????????????? | | ???????####???????????????????????? | | ???????#"""#??????????????????????? | | ?????##"!!!"??????????????????????? | | ?????#"" "??????????????????????? | | ?????# ??????????????????????? | | ?????# < ???????????###########? | | ?????# ???????????# #? | | ?????? ???????????# "" #? | | ??????? ???????????# """ #? | | ???????# #???????????# """ S" #? | | ???????# #???????????# """ #? | | ???????# #???????????# """ #? | | ???????# #???????????# ## | | ??????## @########+#### = # | | ??????# ##+######### | | ??????# | | ????" + " | | ??????# """ ### | | ??????# "" #?? | | ??????#[[[ """ ######### #?? | | ??????#[[[ = "" #???????# ### | | ??????#[[ """ #???????# ## | | ??????# """ #???????# ## | | ??????" """ #??????? # | | ?????"T " #??????# # | | ?????"" #??????+ < / | | ??????# #??????# # | | ??????# #??????# # | | ??????? #??????### #### | | ?????????/###### #?????????? #??? | | ???????????????? ??????????? #??? | | ?????????????????????????????? ???? | | ??????????????????????????????????? | | ??????????????????????????????????? | | ??????????????????????????????????? | | ??????????????????????????????????? | | ??????????????????????????????????? | | ??????????????????????????????????? | +----------------------------------------------------+ Best States ------------- Heat Dissipation 28 Energy Generation 5 Energy Capacity 100 Matter Stores 300 Matter Capacity 300 Sight Range 16 Terrain Scan Density 10 Evasion (%) 62 Item Schematics ----------------- None Robot Schematics ------------------ None Fabricated ------------ Nothing Alien Tech Used ----------------- None Achievements -------------- None Challenges ------------ None Game ------ Seed DecoderRagnarokBarrier Manual? 0 Play Time 00:05:05 Cumulative 358.8 hours Start 2020.10.21 @ 01:34:06 End 2020.10.21 @ 01:36:51 Sessions 1 Manual Loads 0 Difficulty Rogue Special Mode None Game No. 656 Rogue 656 Adventurer 0 Explorer 0 Win Type - Total 56 Types 43/4/3/2/1/1/2/0/0 Lore% 93 Gallery% 91 Achievement% 74 Wizard Run 0 Options --------- ASCII 1 Keyboard 1 Movement Numpad Keybinds 0 Fullscreen 2 Font 24/Terminus Map View 76x50 Tactical HUD 1 Map Filters NONE Filters NONE Steam 1 RUN: 231dd1ba-d765-4cb9-8324-78aea536c942